Workbook

Sheet Menu
B8: Welcome. This application is intended for use by licensees of the Environmental Protection Agency in
B9: connection with reporting obligations under Section 53A of the Waste Management Act, 1996
B10: (as amended).
B12: You can navigate the application using the menu system below (you will need to "Enable Macros" or
B13: if you get a Security Warning: Macros have been disabled message please click on "Options" above
B14: and choose "Enable this content"). Alternatively you can navigate by clicking on the tabs at the bottom
B15: of the screen. If you have any technical queries in relation to the use of this application please contact
B16: [insert contact details here].

Sheet 1. Declaration under S53A
A3: Please click on the declaration below to edit the information in square brackets. Insert the required information, print on letterhead and sign.

Sheet 2. Notes to Complete Analysis
A4: Notes to Assist Completion of the Detailed Analysis Supporting the Statement of Compliance with Section 53A:
A6: Please read these notes carefully prior to the completion of the Detailed Analysis spreadsheet
A9: Note | B9: 1
B10: Section 53A (sections 1 to 4) of the Waste Management Act, 1996 (as amended) states the following:
B11: (1) The operator of a landfill facility (other than an internal landfill facility), or such other facility for the disposal of waste as may be prescribed for the purposes of this subsection, shall impose charges in respect of the disposal of waste at the facility.
B12: (2) Subject to subsection (3), different amounts of charges may be imposed under subsection (1) in respect of different disposals of waste at the facility concerned.
B13: (3) The amount or amounts of charges imposed under subsection (1) shall be such as the operator of the facility concerned determines is likely to ensure that the result specified in subsection (4) is achieved.
B14: (4) The result referred to in subsection (3) is that the aggregate of the amount of charges imposed by the operator, in relation to the facility concerned, during the relevant period will not be less than the amount that would meet the following costs (irrespective of whether those costs, or any of them, have been or will be met from other financial measures available to the operator), namely –
B15: (a) the costs incurred by the operator in the acquisition or development, or both (as the case may be), of the facility,
B16: (b) the costs of operating the facility during the relevant period (including the costs of making any financial provision under section 53), and
B17: (c) the estimated costs, during a period of not less than 30 years or such greater period as may be prescribed, of the closure, restoration, remediation or aftercare of the facility.
A19: Note | B19: =B9+1 -> 2
B20: Section 53A requires charges to be imposed during the "relevant period". The EPA hereby specifies that the start of the relevant period is the date of commencement of waste disposal in the landfill and the end of the relevant period is the predicted date of cessation of waste disposal in the landfill. It should be noted that although the relevant period during which charges must be imposed necessarily relates to the period of waste disposal, the costs that must be met by those charges includes costs incurred outside the relevant period, i.e. acquisition, development, closure, restoration, remediation and aftercare costs.
A22: Note | B22: =B19+1 -> 3
B23: Landfill operators must complete the Worsksheet - "3. Landfill Data - To Complete".
B24: Landfill operators must complete the Worsksheet - "4. Financial Data - To Complete".
B25: Worksheet 5. "Section 53A Analysis" summarises the data that you have completed and provides an indication of Section 53A Compliance. No information needs to be input in this Worksheet.
B26: Landfill operators must complete the Worksheet - "6. Comments - to Complete" if you have any queries or points of clarification that you would like to make as part of your submission.
A28: Note | B28: =B22+1 -> 4
B29: In the Worksheet - "3. Landfill Data - To Complete", please note the following very carefully for Inputs 5, 6 and 7:
B30: (1) The total disposal capacity of the landfill facility refers to the disposal capacity over the entire lifecycle, i.e. the disposal capacity of full cells plus active cells plus any cells to be constructed in the future. It should not be confused with total constructed disposal capacity or remaining disposal capacity.
B31: (2) The total disposal capacity should be based on fully consented landfill only, i.e. the parts of the landfill with both planning permission and waste licence.
B32: (3) The capacity is defined by the top of the basal/side liner system and base of the final capping system.
B33: (4) The total disposal capacity refers to waste for disposal only. A deduction should be made for cover materials left or to be left in-situ.
A35: Note | B35: =B28+1 -> 5
B36: In the Worksheet - "3. Landfill Data - To Complete", please note the following very carefully for Input 8:
B37: (1) The Total Constructed Disposal Capacity refers to the capacity over the entire lifecycle of cells constructed to date, i.e. the capacity of full cells plus active cells plus any cells constructed but not yet in use. It should not be confused with Total Disposal Capacity or remaining disposal capacity.
B38: (2) The capacity is defined by the top of the basal/side liner system and base of the final capping system.
B39: (3) Total disposal capacity refers to waste for disposal only. A deduction should be made for cover materials left or to be left in-situ.
A41: Note | B41: =B35+1 -> 6
B42: In the Worksheet - "4. Financial Data - to Complete", please input all the data requested (marked in light grey) as positive numbers except where there is (1) a debit i.e. cost in the Revenue section or (2) a credit i.e. income in the Cost sections.
B43: Cells marked in green denote cells where the data is automatically completed and hence where you do NOT need to input data to.
B44: Cells marked in dark grey should be entirely ignored and no data should be input to these.
A46: Note | B46: =B41+1 -> 7
B47: In the Worksheet - "4. Financial Data - to Complete", please complete all the data requested as follows:
B48: - Sections A to D for ALL relevant years (including, if relevant, the "Total Estimated Prior to Y/E in 2003/2004" column) up to the year covered by the Section 53A analysis.
B49: - Sections E1-E5, which represent total numbers, potentially covering the full lifecycle (including post closure) of the landfill.
B50: - Do NOT enter any data in years following the year of the return in question.
A52: Note | B52: =B46+1 -> 8
B53: Do not overwrite formulae or add in columns or rows in any circumstance. There is a separate row at the end of each section for "Other" items.
A55: Note | B55: =B52+1 -> 9
B56: All revenues and costs (operating and capital) should be stated excluding VAT.
A58: Note | B58: =B55+1 -> 10
B59: We ask for landfill levy to be input in both the revenue and operating cost sections such that it will net off to zero. However, if your financial data excludes it altogether you may put zero into each.
A61: Note | B61: =B58+1 -> 11
B62: Section 53A refers to landfill facilities and the "disposal of waste at the facility concerned" and therefore the analysis must exclude revenues and costs unrelated to landfill. For example, revenues and costs in relation to a composting facility or civic amenity located on site must be EXCLUDED from the analysis.
A64: Note | B64: =B61+1 -> 12
B65: The financial year during which Section 53A was enacted (i.e. 12 July 2004) must be split between two periods - (1) "Previous Y/E to 11 July 2004" and (2) "12 July 2004 to next Y/E". You may use a reasonable estimate to split this year.
A67: Note | B67: =B64+1 -> 13
B68: The model allocates (1) Acquisition, (2) Development, and (3) Closure, Remediation, Aftercare and Management Plan ("CRAMP") costs to the period prior to the introduction of Section 53A and the period after the introduction of Section 53A (on a year by year basis). The amount of these costs to be allocated to each year is calculated on the basis of the following:
B69: E1: Tonnage/M3 for Year in question divided by Total Disposal Capacity (in Tonnage/M3)
B70: E2: Tonnage/M3 for Year in question divided by Total Constructed Disposal Capacity (in Tonnage/M3)
B71: E3: Tonnage/M3 for Year in question divided by Total Constructed Disposal Capacity (in Tonnage/M3)
B72: E4: Tonnage/M3 for Year in question divided by Total Constructed Disposal Capacity (in Tonnage/M3)
B73: E5: Tonnage/M3 for Year in question divided by Total Disposal Capacity (in Tonnage/M3)
A75: Note | B75: =B67+1 -> 14
B76: The "Adjusted Operating Profit Calculation" is used for the purposes of making your data consistent with Section 53A and to avoid the double counting of costs. For example, acquisition and development costs are separately deducted (in part or in full) in this model and therefore if we allowed a separate deduction for depreciation charges, this would represent a double count. For similar reasons, if there are non cash charges such as Leachate, CRAMP or remediation provisions charged through your Profit & Loss Account then there could be a double count as we ask for the total numbers (over the entire lifecycle) for these items elsewhere.
A78: Note | B78: =B75+1 -> 15
B79: Please correct any Error Messages such as "Error", "No Tonnage", etc. They generally result from an omission or data inconsistency.
A81: Note | B81: =B78+1 -> 16
B82: If you have any queries please contact [Person's Name], [Title] on [Telephone Number] or [e-mail address].

Sheet 3. Landfill Data - to Complete
A4: Landfill Information Required under Section 53A of the Waste Management Act, 1996 (as amended):
B6: PLEASE E-MAIL THIS WORKBOOK TO: [E-mail address of Relevant EPA staff member]
A8: 1 | B8: Year Covered by Section 53A Statement | C8: 2011
A9: =1+A8 -> 2 | B9: End of Financial Year which is Covered by this Statement e.g. 31 March 2011, 31 December 2011, etc | C9: 2011-12-31
A10: =1+A9 -> 3 | B10: Licence Registration Number | C10: W1000-002
A11: =1+A10 -> 4 | B11: Is this Analysis being Completed by you in Weight (Tonnes) or Cubic Capacity (M3)? PLEASE KEEP CONSISTENT THROUGHOUT | C11: Tonnes
A12: 5 | B12: Total Disposal Capacity of Landfill Site (over entire lifecycle/relevant period) in either Tonnes/M3 - INPUT NUMBER ONLY | C12: 1000000 | D12: Please refer to Note 4 in "Notes to Complete Analysis"
A13: 6 | B13: Total Disposal Capacity of Site based on Planning Permission Restriction (if any) in either Tonnes/M3 - INPUT NUMBER ONLY | C13: 900000 | D13: Please refer to Note 4 in "Notes to Complete Analysis"
A14: 7 | B14: If the landfill is to be closed early what will the reduced Total Disposal Capacity be in either Tonnes or M3? - INPUT NUMBER ONLY | D14: Please refer to Note 4 in "Notes to Complete Analysis"
A15: 8 | B15: Total Constructed Disposal Capacity in either Tonnes or M3? INPUT NUMBER ONLY | C15: 800000 | D15: Please refer to Note 5 in "Notes to Complete Analysis"
C16: =IF(C12="","",IF(C15<>"","","Error - Total Constructed Capacity must be Input")) -> 
C17: =IFERROR(IF(C15>'5. Section 53A Analysis'!C28,"Error - Total Constructed Disposal Capacity Exceeds Total Disposal Capacity",""),"") -> 
A18: =A15+1 -> 9 | B18: Is the Landfill Facility compliant with Section 53A of the Waste Management Act, 1996 (as amended)? Yes or No | C18: Yes
A19: =A18+1 -> 10 | B19: If the answer is Yes but "5. Section 53A Analysis" suggests that the Landfill may not be compliant with Section 53A of the Waste Management Act, 1996 (as amended) please describe why you consider that the Landfill is compliant
A22: =A19+1 -> 11 | B22: Please indicate if you wish the information supplied to be deemed confidential (Yes/No) | C22: No
A23: =A22+1 -> 12 | B23: Please clarify why you wish the information to be deemed confidential
A24: =A23+1 -> 13 | B24: Name of Person Who Completed this Return | C24: John Smith
A25: =A24+1 -> 14 | B25: Position/Title of Person Who Completed this Return | C25: Finance Director

Sheet 4. Financial Data - To Complete
A4: Financial Data to Complete - Supporting Statement of Compliance with Section 53A:
F6: COMPLETE DATA UP TO THE YEAR UNDER REVIEW
D7: Pre- Section 53A | F7: Post Section 53A - Calendar Year or Financial Year Ended During
A8: Section | D8: Total Estimated Prior to Y/E in 2003/2004 | E8: Previous Y/E to 11 July 2004 | F8: 12 July 2004 to next Y/E | G8: 2005 | H8: 2006 | I8: 2007 | J8: 2008 | K8: 2009 | L8: 2010 | M8: 2011 | N8: 2012 | O8: 2013 | P8: 2014 | Q8: 2015 | R8: 2016 | S8: 2017 | T8: 2018 | U8: 2019 | V8: 2020 | W8: 2021 | X8: 2022 | Y8: 2023 | Z8: 2024 | AA8: 2025 | AB8: 2026 | AC8: 2027 | AD8: 2028 | AE8: 2029 | AF8: 2030 forward (cumulative)
D10: =IF('3. Landfill Data - to Complete'!$C$11>0,'3. Landfill Data - to Complete'!$C$11,"") -> Tonnes | E10: =IF('3. Landfill Data - to Complete'!$C$11>0,'3. Landfill Data - to Complete'!$C$11,"") -> Tonnes | F10: =IF('3. Landfill Data - to Complete'!$C$11>0,'3. Landfill Data - to Complete'!$C$11,"") -> Tonnes | G10: =IF('3. Landfill Data - to Complete'!$C$11>0,'3. Landfill Data - to Complete'!$C$11,"") -> Tonnes | H10: =IF('3. Landfill Data - to Complete'!$C$11>0,'3. Landfill Data - to Complete'!$C$11,"") -> Tonnes | I10: =IF('3. Landfill Data - to Complete'!$C$11>0,'3. Landfill Data - to Complete'!$C$11,"") -> Tonnes | J10: =IF('3. Landfill Data - to Complete'!$C$11>0,'3. Landfill Data - to Complete'!$C$11,"") -> Tonnes | K10: =IF('3. Landfill Data - to Complete'!$C$11>0,'3. Landfill Data - to Complete'!$C$11,"") -> Tonnes | L10: =IF('3. Landfill Data - to Complete'!$C$11>0,'3. Landfill Data - to Complete'!$C$11,"") -> Tonnes | M10: =IF('3. Landfill Data - to Complete'!$C$11>0,'3. Landfill Data - to Complete'!$C$11,"") -> Tonnes | N10: =IF('3. Landfill Data - to Complete'!$C$11>0,'3. Landfill Data - to Complete'!$C$11,"") -> Tonnes | O10: =IF('3. Landfill Data - to Complete'!$C$11>0,'3. Landfill Data - to Complete'!$C$11,"") -> Tonnes | P10: =IF('3. Landfill Data - to Complete'!$C$11>0,'3. Landfill Data - to Complete'!$C$11,"") -> Tonnes | Q10: =IF('3. Landfill Data - to Complete'!$C$11>0,'3. Landfill Data - to Complete'!$C$11,"") -> Tonnes | R10: =IF('3. Landfill Data - to Complete'!$C$11>0,'3. Landfill Data - to Complete'!$C$11,"") -> Tonnes | S10: =IF('3. Landfill Data - to Complete'!$C$11>0,'3. Landfill Data - to Complete'!$C$11,"") -> Tonnes | T10: =IF('3. Landfill Data - to Complete'!$C$11>0,'3. Landfill Data - to Complete'!$C$11,"") -> Tonnes | U10: =IF('3. Landfill Data - to Complete'!$C$11>0,'3. Landfill Data - to Complete'!$C$11,"") -> Tonnes | V10: =IF('3. Landfill Data - to Complete'!$C$11>0,'3. Landfill Data - to Complete'!$C$11,"") -> Tonnes | W10: =IF('3. Landfill Data - to Complete'!$C$11>0,'3. Landfill Data - to Complete'!$C$11,"") -> Tonnes | X10: =IF('3. Landfill Data - to Complete'!$C$11>0,'3. Landfill Data - to Complete'!$C$11,"") -> Tonnes | Y10: =IF('3. Landfill Data - to Complete'!$C$11>0,'3. Landfill Data - to Complete'!$C$11,"") -> Tonnes | Z10: =IF('3. Landfill Data - to Complete'!$C$11>0,'3. Landfill Data - to Complete'!$C$11,"") -> Tonnes | AA10: =IF('3. Landfill Data - to Complete'!$C$11>0,'3. Landfill Data - to Complete'!$C$11,"") -> Tonnes | AB10: =IF('3. Landfill Data - to Complete'!$C$11>0,'3. Landfill Data - to Complete'!$C$11,"") -> Tonnes | AC10: =IF('3. Landfill Data - to Complete'!$C$11>0,'3. Landfill Data - to Complete'!$C$11,"") -> Tonnes | AD10: =IF('3. Landfill Data - to Complete'!$C$11>0,'3. Landfill Data - to Complete'!$C$11,"") -> Tonnes | AE10: =IF('3. Landfill Data - to Complete'!$C$11>0,'3. Landfill Data - to Complete'!$C$11,"") -> Tonnes | AF10: =IF('3. Landfill Data - to Complete'!$C$11>0,'3. Landfill Data - to Complete'!$C$11,"") -> Tonnes
A11: A | B11: Tonnage/M3 Data
B13: Waste Accepted for Disposal | D13: 250000 | E13: 24000 | F13: 23000 | G13: 48000 | H13: 49000 | I13: 50000 | J13: 47500 | K13: 47000 | L13: 45000 | M13: 44000
B14: Waste Accepted for Cover | D14: 4500 | E14: 500 | F14: 500 | G14: 1000 | H14: 1000 | I14: 1000 | J14: 800 | K14: 800 | L14: 700 | M14: 700
B15: Other - Please specify Nature here:
B16: Total in Tonnes/M3 | D16: =SUM(D13:D15) -> 254500 | E16: =SUM(E13:E15) -> 24500 | F16: 23500 | G16: 49000 | H16: 50000 | I16: 51000 | J16: 48300 | K16: 47800 | L16: 45700 | M16: 44700 | N16: 0 | O16: 0 | P16: 0 | Q16: 0 | R16: 0 | S16: 0 | T16: 0 | U16: 0 | V16: 0 | W16: 0 | X16: 0 | Y16: 0 | Z16: 0 | AA16: 0 | AB16: 0 | AC16: 0 | AD16: 0 | AE16: 0 | AF16: 0
D18: =IF(D16=0,"No Tonnage","") ->  | E18: =IF(E16=0,"No Tonnage","") ->  | N18: No Tonnage | O18: No Tonnage | P18: No Tonnage | Q18: No Tonnage | R18: No Tonnage | S18: No Tonnage | T18: No Tonnage | U18: No Tonnage | V18: No Tonnage | W18: No Tonnage | X18: No Tonnage | Y18: No Tonnage | Z18: No Tonnage | AA18: No Tonnage | AB18: No Tonnage | AC18: No Tonnage | AD18: No Tonnage | AE18: No Tonnage | AF18: No Tonnage
B20: Waste Accepted for Disposal - Split as Follows (if available):
B21: Received from 3rd Parties | E21: =E13*0.75 -> 18000 | F21: =F13*0.75 -> 17250 | G21: 36000 | H21: 36750 | I21: 37500 | J21: 35625 | K21: 35250 | L21: 33750 | M21: 33000
B22: Received from Related Parties (i.e. from within same group of companies or County Council) | E22: =E13*0.25 -> 6000 | F22: =F13*0.25 -> 5750 | G22: 12000 | H22: 12250 | I22: 12500 | J22: 11875 | K22: 11750 | L22: 11250 | M22: 11000
B23: Total Waste Accepted for Disposal in Tonnes/M3 | E23: =E13 -> 24000 | F23: =F13 -> 23000 | G23: 48000 | H23: 49000 | I23: 50000 | J23: 47500 | K23: 47000 | L23: 45000 | M23: 44000 | N23: 0 | O23: 0 | P23: 0 | Q23: 0 | R23: 0 | S23: 0 | T23: 0 | U23: 0 | V23: 0 | W23: 0 | X23: 0 | Y23: 0 | Z23: 0 | AA23: 0 | AB23: 0 | AC23: 0 | AD23: 0 | AE23: 0 | AF23: 0
E25: =IF(AND(OR(E21<>"",E22<>""),E23<>SUM(E21:E22)),"Split must equal total","") ->  | F25: =IF(AND(OR(F21<>"",F22<>""),F23<>SUM(F21:F22)),"Split must equal total","") -> 
E27: €'000 | F27: €'000 | G27: €'000 | H27: €'000 | I27: €'000 | J27: €'000 | K27: €'000 | L27: €'000 | M27: €'000 | N27: €'000 | O27: €'000 | P27: €'000 | Q27: €'000 | R27: €'000 | S27: €'000 | T27: €'000 | U27: €'000 | V27: €'000 | W27: €'000 | X27: €'000 | Y27: €'000 | Z27: €'000 | AA27: €'000 | AB27: €'000 | AC27: €'000 | AD27: €'000 | AE27: €'000 | AF27: €'000
A29: B | B29: Revenue Data - EXCLUDING VAT
B31: Revenue from Waste Accepted for Disposal ex Levy | E31: 2640000 | F31: 2530000 | G31: 5720000 | H31: 5390000 | I31: 5000000 | J31: 4512500 | K31: 3760000 | L31: 2475000 | M31: 2420000
B32: Revenue from Waste Accepted for Cover
B33: Landfill Levy Collected | E33: 360000 | F33: 345000 | G33: 720000 | H33: 735000 | I33: 750000 | J33: 831250 | K33: 940000 | L33: 1125000 | M33: 1800000
B34: Revenue from Gas Utilisation
B35: Other - Please specify Nature here: [ ]
B36: Total Revenue excluding VAT | E36: =SUM(E31:E35) -> 3000000 | F36: =SUM(F31:F35) -> 2875000 | G36: 6440000 | H36: 6125000 | I36: 5750000 | J36: 5343750 | K36: 4700000 | L36: 3600000 | M36: 4220000 | N36: 0 | O36: 0 | P36: 0 | Q36: 0 | R36: 0 | S36: 0 | T36: 0 | U36: 0 | V36: 0 | W36: 0 | X36: 0 | Y36: 0 | Z36: 0 | AA36: 0 | AB36: 0 | AC36: 0 | AD36: 0 | AE36: 0 | AF36: 0
B38: Total Revenue excluding VAT - Split as Follows (if available):
B39: Received from 3rd Parties | E39: =E36*0.75 -> 2250000 | F39: =F36*0.75 -> 2156250 | G39: 4830000 | H39: 4593750 | I39: 4312500 | J39: 4007812.5 | K39: 3525000 | L39: 2700000 | M39: 3165000
B40: Received from Related Parties (i.e. from within same group of companies or County Council) | E40: =E36*0.25 -> 750000 | F40: =F36*0.25 -> 718750 | G40: 1610000 | H40: 1531250 | I40: 1437500 | J40: 1335937.5 | K40: 1175000 | L40: 900000 | M40: 1055000
B41: Total Revenue excluding VAT | E41: =SUM(E39:E40) -> 3000000 | F41: =SUM(F39:F40) -> 2875000 | G41: 6440000 | H41: 6125000 | I41: 5750000 | J41: 5343750 | K41: 4700000 | L41: 3600000 | M41: 4220000 | N41: 0 | O41: 0 | P41: 0 | Q41: 0 | R41: 0 | S41: 0 | T41: 0 | U41: 0 | V41: 0 | W41: 0 | X41: 0 | Y41: 0 | Z41: 0 | AA41: 0 | AB41: 0 | AC41: 0 | AD41: 0 | AE41: 0 | AF41: 0
D43: =IF(D41>D36,"Error","") ->  | E43: =IF(AND(OR(E39<>"",E40<>""),E41<>E36),"Row 41 must equal Row 36","") ->  | F43: =IF(AND(OR(F39<>"",F40<>""),F41<>F36),"Row 41 must equal Row 36","") -> 
A45: C | B45: Operating Cost Data - EXCLUDING VAT
B46: Fill in as positive number unless amount is a Credit
B47: Landfill Site Operating Costs | E47: 485000 | F47: 475000 | G47: 975000 | H47: 1000000 | I47: 970000 | J47: 930000 | K47: 900000 | L47: 840000 | M47: 800000
B48: Administration Costs | E48: 85000 | F48: 80000 | G48: 170000 | H48: 180000 | I48: 160000 | J48: 155000 | K48: 150000 | L48: 140000 | M48: 125000
B49: Landfill Levy Payment | E49: 360000 | F49: 345000 | G49: 720000 | H49: 735000 | I49: 750000 | J49: 831250 | K49: 940000 | L49: 1125000 | M49: 1800000
B50: CRAMP Costs Provided For in the Profit and Loss Account/Income Statement but not actually paid | E50: 100000 | F50: 100000 | G50: 200000 | H50: 200000 | I50: 200000 | J50: 200000 | K50: 200000 | L50: 200000 | M50: 200000
B51: Leachate Costs Provided for in the Profit and Loss Account/Income Statement but not actually paid | E51: 25000 | F51: 25000 | G51: 50000 | H51: 55000 | I51: 55000 | J51: 60000 | K51: 60000 | L51: 65000 | M51: 65000
B52: Other Remediation Costs Provided for in the Profit and Loss Account/Income Statement but not actually paid
B53: Depreciation of Fixed Assets - THIS MUST BE COMPLETED IF YOU HAVE A DEPRECIATION CHARGE | E53: 30000 | F53: 25000 | G53: 60000 | H53: 65000 | I53: 65000 | J53: 70000 | K53: 70000 | L53: 75000 | M53: 75000
B54: Allocated Costs - allocated from central body
B55: Community Levy | E55: 12000 | F55: 11500 | G55: 24000 | H55: 24500 | I55: 25000 | J55: 23750 | K55: 23500 | L55: 22500 | M55: 22000
B56: All Other Costs (not listed separately above)
B57: Total Operating costs excluding VAT | E57: =SUM(E47:E56) -> 1097000 | F57: =SUM(F47:F56) -> 1061500 | G57: 2199000 | H57: 2259500 | I57: 2225000 | J57: 2270000 | K57: 2343500 | L57: 2467500 | M57: 3087000 | N57: 0 | O57: 0 | P57: 0 | Q57: 0 | R57: 0 | S57: 0 | T57: 0 | U57: 0 | V57: 0 | W57: 0 | X57: 0 | Y57: 0 | Z57: 0 | AA57: 0 | AB57: 0 | AC57: 0 | AD57: 0 | AE57: 0 | AF57: 0
B59: Operating Profit | E59: =E36-E57 -> 1903000 | F59: 1813500 | G59: 4241000 | H59: 3865500 | I59: 3525000 | J59: 3073750 | K59: 2356500 | L59: 1132500 | M59: 1133000 | N59: 0 | O59: 0 | P59: 0 | Q59: 0 | R59: 0 | S59: 0 | T59: 0 | U59: 0 | V59: 0 | W59: 0 | X59: 0 | Y59: 0 | Z59: 0 | AA59: 0 | AB59: 0 | AC59: 0 | AD59: 0 | AE59: 0 | AF59: 0
B60: Do Revenues Exceed Operating Costs? | E60: =IF(E59>-0.01,"Yes","No") -> Yes | F60: Yes | G60: Yes | H60: Yes | I60: Yes | J60: Yes | K60: Yes | L60: Yes | M60: Yes | N60: Yes | O60: Yes | P60: Yes | Q60: Yes | R60: Yes | S60: Yes | T60: Yes | U60: Yes | V60: Yes | W60: Yes | X60: Yes | Y60: Yes | Z60: Yes | AA60: Yes | AB60: Yes | AC60: Yes | AD60: Yes | AE60: Yes | AF60: Yes
B61: Does the Levy in Revenue Equal the Levy in Operating Costs? | E61: =IF(E33<>E49,"Error on Levy","") ->  | F61: =IF(F33<>F49,"Error on Levy","") -> 
A63: D | B63: Adjusted Operating Profit Calculation:
B64: =B59 -> Operating Profit | E64: =E59 -> 1903000 | F64: 1813500 | G64: 4241000 | H64: 3865500 | I64: 3525000 | J64: 3073750 | K64: 2356500 | L64: 1132500 | M64: 1133000 | N64: 0 | O64: 0 | P64: 0 | Q64: 0 | R64: 0 | S64: 0 | T64: 0 | U64: 0 | V64: 0 | W64: 0 | X64: 0 | Y64: 0 | Z64: 0 | AA64: 0 | AB64: 0 | AC64: 0 | AD64: 0 | AE64: 0 | AF64: 0
B66: Add Back Items Covered Separately below - CRAMP and Remediation Provisions, Acquisition and Development Costs:
B68: =B50 -> CRAMP Costs Provided For in the Profit and Loss Account/Income Statement but not actually paid | E68: =E50 -> 100000 | F68: 100000 | G68: 200000 | H68: 200000 | I68: 200000 | J68: 200000 | K68: 200000 | L68: 200000 | M68: 200000 | N68: 0 | O68: 0 | P68: 0 | Q68: 0 | R68: 0 | S68: 0 | T68: 0 | U68: 0 | V68: 0 | W68: 0 | X68: 0 | Y68: 0 | Z68: 0 | AA68: 0 | AB68: 0 | AC68: 0 | AD68: 0 | AE68: 0 | AF68: 0
B69: =B51 -> Leachate Costs Provided for in the Profit and Loss Account/Income Statement but not actually paid | E69: =E51 -> 25000 | F69: 25000 | G69: 50000 | H69: 55000 | I69: 55000 | J69: 60000 | K69: 60000 | L69: 65000 | M69: 65000 | N69: 0 | O69: 0 | P69: 0 | Q69: 0 | R69: 0 | S69: 0 | T69: 0 | U69: 0 | V69: 0 | W69: 0 | X69: 0 | Y69: 0 | Z69: 0 | AA69: 0 | AB69: 0 | AC69: 0 | AD69: 0 | AE69: 0 | AF69: 0
B70: =B52 -> Other Remediation Costs Provided for in the Profit and Loss Account/Income Statement but not actually paid | E70: =E52 -> 0 | F70: 0 | G70: 0 | H70: 0 | I70: 0 | J70: 0 | K70: 0 | L70: 0 | M70: 0 | N70: 0 | O70: 0 | P70: 0 | Q70: 0 | R70: 0 | S70: 0 | T70: 0 | U70: 0 | V70: 0 | W70: 0 | X70: 0 | Y70: 0 | Z70: 0 | AA70: 0 | AB70: 0 | AC70: 0 | AD70: 0 | AE70: 0 | AF70: 0
B71: =B53 -> Depreciation of Fixed Assets - THIS MUST BE COMPLETED IF YOU HAVE A DEPRECIATION CHARGE | E71: =E53 -> 30000 | F71: 25000 | G71: 60000 | H71: 65000 | I71: 65000 | J71: 70000 | K71: 70000 | L71: 75000 | M71: 75000 | N71: 0 | O71: 0 | P71: 0 | Q71: 0 | R71: 0 | S71: 0 | T71: 0 | U71: 0 | V71: 0 | W71: 0 | X71: 0 | Y71: 0 | Z71: 0 | AA71: 0 | AB71: 0 | AC71: 0 | AD71: 0 | AE71: 0 | AF71: 0
B72: Capping Costs Actual Paid and included in Operating Costs above for waste collected pre 12 July 2004
B73: Leachate Costs Actual Paid and included in Operating Costs above for waste collected pre 12 July 2004
B74: Other Items that you feel are appropriate to add-back/deduct - please provide a brief explanation below
B75: Description of Item:
B81: Total Addbacks | E81: =SUM(E68:E74) -> 155000 | F81: =SUM(F68:F74) -> 150000 | G81: 310000 | H81: 320000 | I81: 320000 | J81: 330000 | K81: 330000 | L81: 340000 | M81: 340000 | N81: 0 | O81: 0 | P81: 0 | Q81: 0 | R81: 0 | S81: 0 | T81: 0 | U81: 0 | V81: 0 | W81: 0 | X81: 0 | Y81: 0 | Z81: 0 | AA81: 0 | AB81: 0 | AC81: 0 | AD81: 0 | AE81: 0 | AF81: 0
B83: Adjusted Operating Profit | E83: =E64+E81 -> 2058000 | F83: 1963500 | G83: 4551000 | H83: 4185500 | I83: 3845000 | J83: 3403750 | K83: 2686500 | L83: 1472500 | M83: 1473000 | N83: 0 | O83: 0 | P83: 0 | Q83: 0 | R83: 0 | S83: 0 | T83: 0 | U83: 0 | V83: 0 | W83: 0 | X83: 0 | Y83: 0 | Z83: 0 | AA83: 0 | AB83: 0 | AC83: 0 | AD83: 0 | AE83: 0 | AF83: 0
C85: €'000 | D85: €'000 | E85: €'000 | F85: €'000 | G85: €'000 | H85: €'000 | I85: €'000 | J85: €'000 | K85: €'000 | L85: €'000 | M85: €'000 | N85: €'000 | O85: €'000 | P85: €'000 | Q85: €'000 | R85: €'000 | S85: €'000 | T85: €'000 | U85: €'000 | V85: €'000 | W85: €'000 | X85: €'000 | Y85: €'000 | Z85: €'000 | AA85: €'000 | AB85: €'000 | AC85: €'000 | AD85: €'000 | AE85: €'000 | AF85: €'000
A86: E1 | B86: Shared Infrastructure Acquisition and Development Costs - INCURRED TO DATE:
B88: Cost of Land | C88: 5500000
B89: Cost of Roads and Infrastructure | C89: 4300000
B90: Cost of Site Facilities e.g. Buildings, gas flares, etc | C90: 2700000
B91: Cost of Plant, Machinery and Vehicles | C91: 950000
B92: Cost of All Other Capital Items not covered above
B93: Total Shared Infrastructure Acquisition and Development Costs - INCURRED TO DATE | C93: =SUM(C88:C92) -> 13450000
B94: % Allocation to Post Introduction of Section 53A (Tonnage/M3 for Year divided by Total Disposal Capacity) | F94: =IFERROR(F$13/'5. Section 53A Analysis'!$C$28,"") -> 0.02555555556 | G94: =IFERROR(G$13/'5. Section 53A Analysis'!$C$28,"") -> 0.05333333333 | H94: =IFERROR(H$13/'5. Section 53A Analysis'!$C$28,"") -> 0.05444444444 | I94: =IFERROR(I$13/'5. Section 53A Analysis'!$C$28,"") -> 0.05555555556 | J94: =IFERROR(J$13/'5. Section 53A Analysis'!$C$28,"") -> 0.05277777778 | K94: =IFERROR(K$13/'5. Section 53A Analysis'!$C$28,"") -> 0.05222222222 | L94: =IFERROR(L$13/'5. Section 53A Analysis'!$C$28,"") -> 0.05 | M94: =IFERROR(M$13/'5. Section 53A Analysis'!$C$28,"") -> 0.04888888889 | N94: =IFERROR(N$13/'5. Section 53A Analysis'!$C$28,"") -> 0 | O94: =IFERROR(O$13/'5. Section 53A Analysis'!$C$28,"") -> 0 | P94: =IFERROR(P$13/'5. Section 53A Analysis'!$C$28,"") -> 0 | Q94: =IFERROR(Q$13/'5. Section 53A Analysis'!$C$28,"") -> 0 | R94: =IFERROR(R$13/'5. Section 53A Analysis'!$C$28,"") -> 0 | S94: =IFERROR(S$13/'5. Section 53A Analysis'!$C$28,"") -> 0 | T94: =IFERROR(T$13/'5. Section 53A Analysis'!$C$28,"") -> 0 | U94: =IFERROR(U$13/'5. Section 53A Analysis'!$C$28,"") -> 0 | V94: =IFERROR(V$13/'5. Section 53A Analysis'!$C$28,"") -> 0 | W94: =IFERROR(W$13/'5. Section 53A Analysis'!$C$28,"") -> 0 | X94: =IFERROR(X$13/'5. Section 53A Analysis'!$C$28,"") -> 0 | Y94: =IFERROR(Y$13/'5. Section 53A Analysis'!$C$28,"") -> 0 | Z94: =IFERROR(Z$13/'5. Section 53A Analysis'!$C$28,"") -> 0 | AA94: =IFERROR(AA$13/'5. Section 53A Analysis'!$C$28,"") -> 0 | AB94: =IFERROR(AB$13/'5. Section 53A Analysis'!$C$28,"") -> 0 | AC94: =IFERROR(AC$13/'5. Section 53A Analysis'!$C$28,"") -> 0 | AD94: =IFERROR(AD$13/'5. Section 53A Analysis'!$C$28,"") -> 0 | AE94: =IFERROR(AE$13/'5. Section 53A Analysis'!$C$28,"") -> 0 | AF94: =IFERROR(AF$13/'5. Section 53A Analysis'!$C$28,"") -> 0
B95: Total Shared Infrasructure Acquisition and Development Costs - INCURRED TO DATE - Allocated Year by Year | F95: =IFERROR($C$93*F94,"") -> 343722.2222 | G95: =IFERROR($C$93*G94,"") -> 717333.3333 | H95: =IFERROR($C$93*H94,"") -> 732277.7778 | I95: 747222.2222 | J95: 709861.1111 | K95: 702388.8889 | L95: 672500 | M95: 657555.5556 | N95: 0 | O95: 0 | P95: 0 | Q95: 0 | R95: 0 | S95: 0 | T95: 0 | U95: 0 | V95: 0 | W95: 0 | X95: 0 | Y95: 0 | Z95: 0 | AA95: 0 | AB95: 0 | AC95: 0 | AD95: 0 | AE95: 0 | AF95: 0
A98: E2 | B98: Cell Development Costs - INCURRED TO DATE:
B100: Costs of Cell Construction | C100: 6000000
B101: Other Cell Related Costs | C101: 500000
B102: Total Cell Development Costs - INCURRED TO DATE | C102: =SUM(C100:C101) -> 6500000
B103: % Allocation to Post Introduction of Section 53A (Tonnage/M3 for Year divided by Total Constructed Disposal Capacity) | F103: =IFERROR(F$13/'5. Section 53A Analysis'!$C$41,"") -> 0.02875 | G103: =IFERROR(G$13/'5. Section 53A Analysis'!$C$41,"") -> 0.06 | H103: =IFERROR(H$13/'5. Section 53A Analysis'!$C$41,"") -> 0.06125 | I103: =IFERROR(I$13/'5. Section 53A Analysis'!$C$41,"") -> 0.0625 | J103: =IFERROR(J$13/'5. Section 53A Analysis'!$C$41,"") -> 0.059375 | K103: =IFERROR(K$13/'5. Section 53A Analysis'!$C$41,"") -> 0.05875 | L103: =IFERROR(L$13/'5. Section 53A Analysis'!$C$41,"") -> 0.05625 | M103: =IFERROR(M$13/'5. Section 53A Analysis'!$C$41,"") -> 0.055 | N103: =IFERROR(N$13/'5. Section 53A Analysis'!$C$41,"") -> 0 | O103: =IFERROR(O$13/'5. Section 53A Analysis'!$C$41,"") -> 0 | P103: =IFERROR(P$13/'5. Section 53A Analysis'!$C$41,"") -> 0 | Q103: =IFERROR(Q$13/'5. Section 53A Analysis'!$C$41,"") -> 0 | R103: =IFERROR(R$13/'5. Section 53A Analysis'!$C$41,"") -> 0 | S103: =IFERROR(S$13/'5. Section 53A Analysis'!$C$41,"") -> 0 | T103: =IFERROR(T$13/'5. Section 53A Analysis'!$C$41,"") -> 0 | U103: =IFERROR(U$13/'5. Section 53A Analysis'!$C$41,"") -> 0 | V103: =IFERROR(V$13/'5. Section 53A Analysis'!$C$41,"") -> 0 | W103: =IFERROR(W$13/'5. Section 53A Analysis'!$C$41,"") -> 0 | X103: =IFERROR(X$13/'5. Section 53A Analysis'!$C$41,"") -> 0 | Y103: =IFERROR(Y$13/'5. Section 53A Analysis'!$C$41,"") -> 0 | Z103: =IFERROR(Z$13/'5. Section 53A Analysis'!$C$41,"") -> 0 | AA103: =IFERROR(AA$13/'5. Section 53A Analysis'!$C$41,"") -> 0 | AB103: =IFERROR(AB$13/'5. Section 53A Analysis'!$C$41,"") -> 0 | AC103: =IFERROR(AC$13/'5. Section 53A Analysis'!$C$41,"") -> 0 | AD103: =IFERROR(AD$13/'5. Section 53A Analysis'!$C$41,"") -> 0 | AE103: =IFERROR(AE$13/'5. Section 53A Analysis'!$C$41,"") -> 0 | AF103: =IFERROR(AF$13/'5. Section 53A Analysis'!$C$41,"") -> 0
B104: Total Cell Development Costs - INCURRED TO DATE - Allocated Year by Year | F104: =IFERROR($C$102*F103,"") -> 186875 | G104: =IFERROR($C$102*G103,"") -> 390000 | H104: =IFERROR($C$102*H103,"") -> 398125 | I104: 406250 | J104: 385937.5 | K104: 381875 | L104: 365625 | M104: 357500 | N104: 0 | O104: =IFERROR($C$102*O103,"") -> 0 | P104: 0 | Q104: 0 | R104: 0 | S104: 0 | T104: 0 | U104: 0 | V104: 0 | W104: 0 | X104: 0 | Y104: 0 | Z104: 0 | AA104: 0 | AB104: 0 | AC104: 0 | AD104: 0 | AE104: 0 | AF104: 0
A107: E3 | B107: Capping Costs for Constructed Cells Only - INCURRED AND TO BE INCURRED AT A LATER DATE:
B109: Cost of Capping incurred | C109: 3500000
B110: Cost of Capping to be incurred | C110: 1500000
B111: Total Capping Costs for Constructed Cells Only - INCURRED AND TO BE INCURRED AT A LATER DATE | C111: =SUM(C109:C110) -> 5000000
B112: % Allocation to Post Introduction of Section 53A (Tonnage/M3 for Year divided by Total Constructed Disposal Capacity) | F112: =IFERROR(F$13/'5. Section 53A Analysis'!$C$41,"") -> 0.02875 | G112: =IFERROR(G$13/'5. Section 53A Analysis'!$C$41,"") -> 0.06 | H112: =IFERROR(H$13/'5. Section 53A Analysis'!$C$41,"") -> 0.06125 | I112: =IFERROR(I$13/'5. Section 53A Analysis'!$C$41,"") -> 0.0625 | J112: =IFERROR(J$13/'5. Section 53A Analysis'!$C$41,"") -> 0.059375 | K112: =IFERROR(K$13/'5. Section 53A Analysis'!$C$41,"") -> 0.05875 | L112: =IFERROR(L$13/'5. Section 53A Analysis'!$C$41,"") -> 0.05625 | M112: =IFERROR(M$13/'5. Section 53A Analysis'!$C$41,"") -> 0.055 | N112: =IFERROR(N$13/'5. Section 53A Analysis'!$C$41,"") -> 0 | O112: =IFERROR(O$13/'5. Section 53A Analysis'!$C$41,"") -> 0 | P112: =IFERROR(P$13/'5. Section 53A Analysis'!$C$41,"") -> 0 | Q112: =IFERROR(Q$13/'5. Section 53A Analysis'!$C$41,"") -> 0 | R112: =IFERROR(R$13/'5. Section 53A Analysis'!$C$41,"") -> 0 | S112: =IFERROR(S$13/'5. Section 53A Analysis'!$C$41,"") -> 0 | T112: =IFERROR(T$13/'5. Section 53A Analysis'!$C$41,"") -> 0 | U112: =IFERROR(U$13/'5. Section 53A Analysis'!$C$41,"") -> 0 | V112: =IFERROR(V$13/'5. Section 53A Analysis'!$C$41,"") -> 0 | W112: =IFERROR(W$13/'5. Section 53A Analysis'!$C$41,"") -> 0 | X112: =IFERROR(X$13/'5. Section 53A Analysis'!$C$41,"") -> 0 | Y112: =IFERROR(Y$13/'5. Section 53A Analysis'!$C$41,"") -> 0 | Z112: =IFERROR(Z$13/'5. Section 53A Analysis'!$C$41,"") -> 0 | AA112: =IFERROR(AA$13/'5. Section 53A Analysis'!$C$41,"") -> 0 | AB112: =IFERROR(AB$13/'5. Section 53A Analysis'!$C$41,"") -> 0 | AC112: =IFERROR(AC$13/'5. Section 53A Analysis'!$C$41,"") -> 0 | AD112: =IFERROR(AD$13/'5. Section 53A Analysis'!$C$41,"") -> 0 | AE112: =IFERROR(AE$13/'5. Section 53A Analysis'!$C$41,"") -> 0 | AF112: =IFERROR(AF$13/'5. Section 53A Analysis'!$C$41,"") -> 0
B113: Total Capping Costs for Constructed Cells Only - INCURRED AND TO BE INCURRED AT A LATER DATE - Allocated Year by Year | F113: =IFERROR($C$111*F112,"") -> 143750 | G113: =IFERROR($C$111*G112,"") -> 300000 | H113: 306250 | I113: 312500 | J113: 296875 | K113: 293750 | L113: 281250 | M113: 275000 | N113: 0 | O113: 0 | P113: 0 | Q113: 0 | R113: 0 | S113: 0 | T113: 0 | U113: 0 | V113: 0 | W113: 0 | X113: 0 | Y113: 0 | Z113: 0 | AA113: 0 | AB113: 0 | AC113: 0 | AD113: 0 | AE113: 0 | AF113: 0
A116: E4 | B116: Leachate Costs for Constructed Cells Only to Landfill Closure Date - INCURRED AND TO BE INCURRED AT A LATER DATE:
B118: Cost of Leachate Collection, Transport and Disposal incurred | C118: 4250000
B119: Cost of Leachate Collection, Transport and Disposal to be incurred until the Landfill Closure Date | C119: 1450000
B120: Total Leachate Costs for Constructed Cells Only - INCURRED AND TO BE INCURRED AT A LATER DATE | C120: =SUM(C118:C119) -> 5700000
B121: % Allocation to Post Introduction of Section 53A (Tonnage/M3 for Year divided by Total Constructed Disposal Capacity) | F121: =IFERROR(F$13/'5. Section 53A Analysis'!$C$41,"") -> 0.02875 | G121: =IFERROR(G$13/'5. Section 53A Analysis'!$C$41,"") -> 0.06 | H121: =IFERROR(H$13/'5. Section 53A Analysis'!$C$41,"") -> 0.06125 | I121: =IFERROR(I$13/'5. Section 53A Analysis'!$C$41,"") -> 0.0625 | J121: =IFERROR(J$13/'5. Section 53A Analysis'!$C$41,"") -> 0.059375 | K121: =IFERROR(K$13/'5. Section 53A Analysis'!$C$41,"") -> 0.05875 | L121: =IFERROR(L$13/'5. Section 53A Analysis'!$C$41,"") -> 0.05625 | M121: =IFERROR(M$13/'5. Section 53A Analysis'!$C$41,"") -> 0.055 | N121: =IFERROR(N$13/'5. Section 53A Analysis'!$C$41,"") -> 0 | O121: =IFERROR(O$13/'5. Section 53A Analysis'!$C$41,"") -> 0 | P121: =IFERROR(P$13/'5. Section 53A Analysis'!$C$41,"") -> 0 | Q121: =IFERROR(Q$13/'5. Section 53A Analysis'!$C$41,"") -> 0 | R121: =IFERROR(R$13/'5. Section 53A Analysis'!$C$41,"") -> 0 | S121: =IFERROR(S$13/'5. Section 53A Analysis'!$C$41,"") -> 0 | T121: =IFERROR(T$13/'5. Section 53A Analysis'!$C$41,"") -> 0 | U121: =IFERROR(U$13/'5. Section 53A Analysis'!$C$41,"") -> 0 | V121: =IFERROR(V$13/'5. Section 53A Analysis'!$C$41,"") -> 0 | W121: =IFERROR(W$13/'5. Section 53A Analysis'!$C$41,"") -> 0 | X121: =IFERROR(X$13/'5. Section 53A Analysis'!$C$41,"") -> 0 | Y121: =IFERROR(Y$13/'5. Section 53A Analysis'!$C$41,"") -> 0 | Z121: =IFERROR(Z$13/'5. Section 53A Analysis'!$C$41,"") -> 0 | AA121: =IFERROR(AA$13/'5. Section 53A Analysis'!$C$41,"") -> 0 | AB121: =IFERROR(AB$13/'5. Section 53A Analysis'!$C$41,"") -> 0 | AC121: =IFERROR(AC$13/'5. Section 53A Analysis'!$C$41,"") -> 0 | AD121: =IFERROR(AD$13/'5. Section 53A Analysis'!$C$41,"") -> 0 | AE121: =IFERROR(AE$13/'5. Section 53A Analysis'!$C$41,"") -> 0 | AF121: =IFERROR(AF$13/'5. Section 53A Analysis'!$C$41,"") -> 0
B122: Total Leachate Costs for Constructed Cells Only - INCURRED AND TO BE INCURRED AT A LATER DATE - Allocated Year by Year | F122: =IFERROR($C$120*F121,"") -> 163875 | G122: =IFERROR($C$120*G121,"") -> 342000 | H122: 349125 | I122: 356250 | J122: 338437.5 | K122: 334875 | L122: 320625 | M122: 313500 | N122: 0 | O122: 0 | P122: 0 | Q122: 0 | R122: 0 | S122: 0 | T122: 0 | U122: 0 | V122: 0 | W122: 0 | X122: 0 | Y122: 0 | Z122: 0 | AA122: 0 | AB122: 0 | AC122: 0 | AD122: 0 | AE122: 0 | AF122: 0
A125: E5 | B125: Restoration and Aftercare Costs Post Site Closure - TO BE INCURRED AT A LATER DATE
B127: Cost of Leachate Collection, Transport and Disposal - post site closure | C127: 2050000
B128: Cost of Monitoring | C128: 800000
B129: Cost of Security | C129: 600000
B130: Cost of Aftercare | C130: 800000
B131: Cost of All Other Items not covered above | C131: 800000
B132: Net Income (if any) e.g. Utilisation of gas to produce electricity - include full costs of generating such income. Enter Profit as Minus
B133: Description of Item: Such Income must have a sound basis for inclusion
B139: Total Restoration and Aftercare Costs Post Site Closure - TO BE INCURRED AT A LATER DATE | C139: =SUM(C127:C132) -> 5050000
B140: % Allocation to Post Introduction of Section 53A (Tonnage/M3 for Year divided by Total Disposal Capacity) | F140: =IFERROR(F$13/'5. Section 53A Analysis'!$C$28,"") -> 0.02555555556 | G140: =IFERROR(G$13/'5. Section 53A Analysis'!$C$28,"") -> 0.05333333333 | H140: =IFERROR(H$13/'5. Section 53A Analysis'!$C$28,"") -> 0.05444444444 | I140: =IFERROR(I$13/'5. Section 53A Analysis'!$C$28,"") -> 0.05555555556 | J140: =IFERROR(J$13/'5. Section 53A Analysis'!$C$28,"") -> 0.05277777778 | K140: =IFERROR(K$13/'5. Section 53A Analysis'!$C$28,"") -> 0.05222222222 | L140: =IFERROR(L$13/'5. Section 53A Analysis'!$C$28,"") -> 0.05 | M140: =IFERROR(M$13/'5. Section 53A Analysis'!$C$28,"") -> 0.04888888889 | N140: =IFERROR(N$13/'5. Section 53A Analysis'!$C$28,"") -> 0 | O140: =IFERROR(O$13/'5. Section 53A Analysis'!$C$28,"") -> 0 | P140: =IFERROR(P$13/'5. Section 53A Analysis'!$C$28,"") -> 0 | Q140: =IFERROR(Q$13/'5. Section 53A Analysis'!$C$28,"") -> 0 | R140: =IFERROR(R$13/'5. Section 53A Analysis'!$C$28,"") -> 0 | S140: =IFERROR(S$13/'5. Section 53A Analysis'!$C$28,"") -> 0 | T140: =IFERROR(T$13/'5. Section 53A Analysis'!$C$28,"") -> 0 | U140: =IFERROR(U$13/'5. Section 53A Analysis'!$C$28,"") -> 0 | V140: =IFERROR(V$13/'5. Section 53A Analysis'!$C$28,"") -> 0 | W140: =IFERROR(W$13/'5. Section 53A Analysis'!$C$28,"") -> 0 | X140: =IFERROR(X$13/'5. Section 53A Analysis'!$C$28,"") -> 0 | Y140: =IFERROR(Y$13/'5. Section 53A Analysis'!$C$28,"") -> 0 | Z140: =IFERROR(Z$13/'5. Section 53A Analysis'!$C$28,"") -> 0 | AA140: =IFERROR(AA$13/'5. Section 53A Analysis'!$C$28,"") -> 0 | AB140: =IFERROR(AB$13/'5. Section 53A Analysis'!$C$28,"") -> 0 | AC140: =IFERROR(AC$13/'5. Section 53A Analysis'!$C$28,"") -> 0 | AD140: =IFERROR(AD$13/'5. Section 53A Analysis'!$C$28,"") -> 0 | AE140: =IFERROR(AE$13/'5. Section 53A Analysis'!$C$28,"") -> 0 | AF140: =IFERROR(AF$13/'5. Section 53A Analysis'!$C$28,"") -> 0
B141: Total Restoration and Aftercare Costs Post Site Closure - TO BE INCURRED AT A LATER DATE - Allocated Year by Year | F141: =IFERROR($C$139*F140,"") -> 129055.5556 | G141: =IFERROR($C$139*G140,"") -> 269333.3333 | H141: 274944.4444 | I141: 280555.5556 | J141: 266527.7778 | K141: 263722.2222 | L141: 252500 | M141: 246888.8889 | N141: 0 | O141: 0 | P141: 0 | Q141: 0 | R141: 0 | S141: 0 | T141: 0 | U141: 0 | V141: 0 | W141: 0 | X141: 0 | Y141: 0 | Z141: 0 | AA141: 0 | AB141: 0 | AC141: 0 | AD141: 0 | AE141: 0 | AF141: 0
B145: CALCULATION OF SECTION 53A ANALYSIS YEAR BY YEAR (D - E1 - E2 - E3 - E4 - E5) | F145: =IFERROR(F83-F95-F104-F113-F122-F141,"") -> 996222.2222 | G145: =IFERROR(G83-G95-G104-G113-G122-G141,"") -> 2532333.333 | H145: 2124777.778 | I145: 1742222.222 | J145: 1406111.111 | K145: 709888.8889 | L145: -420000 | M145: -377444.4444 | N145: 0 | O145: 0 | P145: 0 | Q145: 0 | R145: 0 | S145: 0 | T145: 0 | U145: 0 | V145: 0 | W145: 0 | X145: 0 | Y145: 0 | Z145: 0 | AA145: 0 | AB145: 0 | AC145: 0 | AD145: 0 | AE145: 0 | AF145: 0
B147: ACCUMULATED CALCULATION OF SECTION 53A ANALYSIS (D - E1 - E2 - E3 - E4 - E5) | F147: =IFERROR(F145,"") -> 996222.2222 | G147: =IFERROR(F147+G145,"") -> 3528555.556 | H147: =IFERROR(G147+H145,"") -> 5653333.333 | I147: 7395555.556 | J147: 8801666.667 | K147: 9511555.556 | L147: 9091555.556 | M147: 8714111.111 | N147: 8714111.111 | O147: 8714111.111 | P147: 8714111.111 | Q147: 8714111.111 | R147: 8714111.111 | S147: 8714111.111 | T147: 8714111.111 | U147: 8714111.111 | V147: 8714111.111 | W147: 8714111.111 | X147: 8714111.111 | Y147: 8714111.111 | Z147: 8714111.111 | AA147: 8714111.111 | AB147: 8714111.111 | AC147: 8714111.111 | AD147: 8714111.111 | AE147: 8714111.111 | AF147: 8714111.111

Sheet 5. Section 53A Analysis
A4: Summary Analysis of Section 53A Data:
A8: Section | B8: Description | C8: €'000 | D8: % of Total Cost
A10: D | B10: Adjusted Operating Profit to Date since introduction of Section 53A | C10: =SUM('4. Financial Data - To Complete'!F83:AF83) -> 23580750
A12: E1 | B12: Allocation of: Shared Infrastructure Acquisition and Development Costs - Incurred to Date | C12: =-SUM('4. Financial Data - To Complete'!F95:AF95) -> -5282861.111 | D12: =IFERROR(-C12/'4. Financial Data - To Complete'!C93,"") -> 0.3927777778
A14: E2 | B14: Allocation of: Cell Development Costs - Incurred to Date | C14: =-SUM('4. Financial Data - To Complete'!F104:AF104) -> -2872187.5 | D14: =IFERROR(-C14/'4. Financial Data - To Complete'!C102,"") -> 0.441875
A16: E3 | B16: Allocation of: Capping Costs for Constructed Cells Only - Incurred and to be Incurred at a Later Date | C16: =-SUM('4. Financial Data - To Complete'!F113:AF113) -> -2209375 | D16: =IFERROR(-C16/'4. Financial Data - To Complete'!C111,"") -> 0.441875
A18: E4 | B18: Allocation of: Leachate Costs for Constructed Cells Only - Incurred and to be Incurred at a Later Date | C18: =-SUM('4. Financial Data - To Complete'!F122:AF122) -> -2518687.5 | D18: =IFERROR(-C18/'4. Financial Data - To Complete'!C120,"") -> 0.441875
A20: E5 | B20: Allocation of: Restoration and Aftercare Costs Post Site Closure - To be Incurred at a Later Date | C20: =-SUM('4. Financial Data - To Complete'!F141:AF141) -> -1983527.778 | D20: =IFERROR(-C20/'4. Financial Data - To Complete'!C139,"") -> 0.3927777778
B22: ACCUMULATED SURPLUS POST INTRODUCTION OF SECTION 53A (D + E1 + E2 + E3 + E4 + E5) | C22: =C10+C12+C14+C16+C18+C20 -> 8714111.111
B26: Summary of Total Disposal Capacity of Landfill Facility: | C26: =IF('3. Landfill Data - to Complete'!$C$11>0,'3. Landfill Data - to Complete'!$C$11,"") -> Tonnes
B28: Total Disposal Capacity of Landfill Facility | C28: =IFERROR(SMALL('3. Landfill Data - to Complete'!C12:C14,COUNTIF('3. Landfill Data - to Complete'!C12:C14,0)+1),"") -> 900000 | D28: 1
B30: Less: Capacity used prior to Introduction of Section 53A | C30: =-SUM('4. Financial Data - To Complete'!D13:E13) -> -274000 | D30: =IFERROR(-C30/$C$28,"") -> 0.3044444444
B32: Capacity to be used following Introduction of Section 53A | C32: =SUM(C28:C30) -> 626000 | D32: =IFERROR(C32/$C$28,"") -> 0.6955555556
B34: Less: Capacity Used to date following Introduction of Section 53A | C34: =-SUM('4. Financial Data - To Complete'!F13:AF13) -> -353500 | D34: =IFERROR(-C34/$C$28,"") -> 0.3927777778
B36: Current remaining Overall Landfill Capacity pertaining to Section 53A Period | C36: =SUM(C32:C34) -> 272500 | D36: =IFERROR(C36/$C$28,"") -> 0.3027777778
B39: Summary of Total Constructed Disposal Capacity of Landfill Facility: | C39: =IF('3. Landfill Data - to Complete'!$C$11>0,'3. Landfill Data - to Complete'!$C$11,"") -> Tonnes
B41: Total Capacity of Cells Constructed to Date | C41: ='3. Landfill Data - to Complete'!C15 -> 800000 | D41: 1
B43: Less: Capacity used prior to Introduction of Section 53A | C43: =C30 -> -274000 | D43: =IFERROR(-C43/$C$41,"") -> 0.3425
B45: Capacity to be used following Introduction of Section 53A | C45: =SUM(C41:C43) -> 526000 | D45: =IFERROR(C45/$C$41,"") -> 0.6575
B47: Less: Capacity Used to date following Introduction of Section 53A | C47: =C34 -> -353500 | D47: =IFERROR(-C47/$C$41,"") -> 0.441875
B49: Current remaining Cell Capacity pertaining to Section 53A Period | C49: =SUM(C45:C48) -> 172500 | D49: =IFERROR(C49/$C$41,"") -> 0.215625

Sheet 6. Comments - To Complete
A4: Notes to Completion of Detailed Analysis Supporting Compliance with Section 53A:
A7: Number | B7: Worksheet ref | C7: Matter of Note | D7: Your Comment/Query
A9: 1
A10: 2
A11: 3
A12: 4
A13: 5
A14: 6
A15: 7
A16: 8
A17: 9
A18: 10
A19: 11
A20: 12
A21: 13
A22: 14
A23: 15
A24: 16
A25: 17
A26: 18
A27: 19
A28: 20
A29: 21
A30: 22
A31: 23
A32: 24
A33: 25

Sheet 7. Data Sheet (hidden)
A1: DO NOT ATTEMPT TO AMEND THIS DATA
A4: Units | B4: Years | C4: Compliance | D4: Worksheet comments
A5: Tonnes | B5: 2011 | C5: Yes | D5: 1
A6: M3 | B6: 2012 | C6: No | D6: 2
B7: 2013 | D7: 3
B8: 2014 | D8: 4
B9: 2015 | D9: 5
B10: 2016 | D10: Other
B11: 2017
B12: 2018
B13: 2019
B14: 2020
B15: 2021
B16: 2022
B17: 2023
B18: 2024
B19: 2025
B20: 2026
B21: 2027
B22: 2028
B23: 2029
B24: 2030
B25: 2031
B26: 2032
B27: 2033
B28: 2034
B29: 2035
B30: 2036
B31: 2037
B32: 2038
B33: 2039
B34: 2040
B35: 2041
B36: 2042
B37: 2043
B38: 2044
B39: 2045
B40: 2046
B41: 2047
B42: 2048
B43: 2049
B44: 2050
